bitfinex/quotes_ETHUSD_20240610
["timestamp","ask_amount","ask_price","bid_price","bid_amount"]
[1718058596729,0.003587,3672.7,3672.6,12.87275699]
[1718058599783,0.003587,3672.7,3672.6,12.87275696]
[1718058601094,0.003587,3672.7,3672.6,12.14975696]
[1718058601285,0.003587,3672.7,3672.6,11.33287996]
[1718058601485,0.003587,3672.7,3672.6,11.33306347]
[1718058604096,0.003587,3672.7,3672.6,8.06020347]
[1718058604301,2.297687,3672.7,3672.6,8.06020347]
[1718058604671,2.297687,3672.7,3672.6,6.06007417]
[1718058605082,2.297687,3672.7,3672.6,7.77475095]
[1718058605611,2.5997557,3672.7,3672.6,2.05189095]
[1718058605825,3.3227557,3672.7,3672.6,0.04313005]
[1718058605971,3.3227557,3672.7,3672.6,1.47208635]
[1718058606206,3.3227557,3672.7,3672.0,10.16328]
[1718058606207,5.13586,3672.6,3672.4,2.00019049]
[1718058606443,3.75245157,3672.5,3672.4,0.85686074]
[1718058606657,3.75245157,3672.5,3672.3,0.85686074]
[1718058606658,1.33945157,3672.5,3672.3,0.85686074]
[1718058606942,3.1168,3672.4,3672.3,0.85686074]
[1718058607343,3.1168,3672.4,3672.3,0.57092939]
[1718058609229,3.1168,3672.4,3672.2,0.57092939]
[1718058609547,2.97241116,3672.3,3672.1,0.85686074]
[1718058610712,2.3268,3672.3,3672.1,0.85686074]
[1718058612246,2.3268,3672.3,3672.2,0.57011529]
[1718058612545,2.3268,3672.3,3672.1,0.57011529]
[1718058614954,2.3268,3672.3,3672.0,0.57011529]
[1718058617186,2.3268,3672.3,3671.9,0.57011529]
[1718058617489,2.3268,3672.3,3672.0,0.57011529]
[1718058617644,2.3268,3672.3,3672.0,0.03409588]
[1718058620752,2.3268,3672.3,3672.0,2.75739588]
[1718058620954,2.3268,3672.3,3672.0,3.32751117]
[1718058621681,2.3268,3672.3,3672.0,2.75739588]
[1718058622050,2.3268,3672.3,3672.0,3.32751117]
[1718058622461,2.3268,3672.3,3672.0,2.75739588]
[1718058633392,2.3268,3672.3,3672.0,3.32751117]
[1718058634404,2.3268,3672.3,3672.2,2.72316]
[1718058634771,2.3268,3672.3,3672.2,2.75721362]
[1718058636605,0.003587,3672.7,3672.2,2.75721362]
[1718058636913,0.723,3672.5,3672.2,2.75721362]
[1718058641325,0.723,3672.3,3672.2,2.75721362]
[1718058641615,2.4657,3672.6,3672.2,2.75721362]
[1718058641821,0.723,3672.5,3672.2,2.75721362]
[1718058643019,0.723,3672.5,3672.2,3.32732891]
[1718058645532,0.723,3672.5,3672.3,0.57011529]
[1718058646025,0.723,3672.5,3672.4,0.03394492]
[1718058648202,0.723,3672.5,3672.4,0.60406021]
[1718058649312,0.723,3672.5,3672.4,0.03394492]
[1718058650334,0.723,3672.5,3672.4,0.89080566]
[1718058651229,0.723,3672.5,3672.4,1.17727467]
[1718058664782,0.2762217,3672.7,3672.4,1.17727467]
[1718058664984,0.723,3672.6,3672.4,1.17727467]
[1718058665353,0.003587,3672.7,3672.4,6.17648467]
[1718058665572,0.003587,3672.7,3672.6,1.42964846]
[1718058665978,0.003587,3672.7,3672.4,6.71478815]
[1718058666299,0.003587,3672.7,3672.6,0.03393888]
[1718058666504,0.003587,3672.7,3672.6,1.42865505]
[1718058667007,0.003587,3672.7,3672.6,1.4624068]
[1718058668163,0.003587,3672.7,3672.6,0.03375175]
[1718058671272,0.003587,3672.7,3672.6,1.17585304]
[1718058672194,0.003587,3672.7,3672.6,0.79412356]
[1718058672970,0.003587,3672.7,3672.6,0.03375175]
[1718058673575,0.003587,3672.7,3672.6,1.17567803]
[1718058677024,0.003587,3672.7,3672.6,0.03375175]
[1718058683895,0.003587,3672.7,3672.6,1.17567803]
[1718058685220,0.003587,3672.7,3672.6,0.03375175]
[1718058693064,0.003587,3672.7,3672.6,3.89853803]
[1718058703377,0.003587,3672.7,3672.6,2.75661175]
[1718058703979,0.003587,3672.7,3672.6,3.89882045]
[1718058704294,0.003587,3672.7,3672.6,2.75661175]
[1718058705981,0.003587,3672.7,3672.6,4.18414897]
[1718058707210,0.003587,3672.7,3672.6,2.75661175]
[1718058707991,0.003587,3672.7,3672.6,4.18414897]
[1718058708607,0.003587,3672.7,3672.6,2.75661175]
[1718058708813,0.003587,3672.7,3672.6,4.18479234]
[1718058711244,0.003587,3672.7,3672.6,2.75661175]
[1718058723471,0.003587,3672.7,3672.6,4.18613574]
[1718058724044,0.003587,3672.7,3672.6,2.75661175]
[1718058730150,0.003587,3672.7,3672.6,0.03375175]
[1718058730349,0.003587,3672.7,3672.4,2.723]
[1718058730544,0.003587,3672.7,3672.3,4.20261671]
[1718058730545,2.6069027,3672.7,3672.6,1.4295259]
[1718058730753,2.984987,3672.7,3672.6,1.4295259]
[1718058730950,2.984987,3672.7,3672.6,0.03390872]
[1718058731390,2.984987,3672.7,3672.6,0.89151235]
[1718058732052,2.984987,3672.7,3672.6,0.03390872]
[1718058732249,3.5557597,3672.7,3672.6,0.03390872]
[1718058733461,3.5557597,3672.7,3672.6,0.89129814]
[1718058733791,3.5557597,3672.7,3672.6,0.03390872]
[1718058734452,3.5557597,3672.7,3672.6,0.89125487]
[1718058734857,3.5557597,3672.7,3672.6,0.03390872]
[1718058735454,3.5557597,3672.7,3672.6,0.89119717]
[1718058743785,1.2973597,3672.7,3672.6,0.89119717]
[1718058754322,0.726587,3672.7,3672.6,0.89119717]
[1718058754659,0.726587,3672.7,3672.6,0.03390872]
[1718058754803,0.726587,3672.7,3672.6,0.89091863]
[1718058756305,0.726587,3672.7,3672.6,0.03390872]
[1718058766571,0.726587,3672.7,3672.6,0.89115717]
[1718058766734,1.3034697,3672.7,3672.6,0.89115717]
[1718058771660,1.3034697,3672.7,3672.6,0.03390872]
[1718058775084,1.3034697,3672.7,3672.6,1.17776139]
[1718058775426,1.3034697,3672.7,3672.6,0.03390872]
[1718058776541,1.3034697,3672.7,3672.6,1.17776139]
[1718058780955,0.726587,3672.7,3672.6,1.17776139]
[1718058782542,0.726587,3672.7,3672.6,0.03390872]
[1718058783264,0.003587,3672.7,3672.6,0.03390872]
[1718058783566,0.726587,3672.7,3672.6,0.03390872]
[1718058784431,0.726587,3672.7,3672.6,0.89168982]
[1718058784629,1.0715197,3672.7,3672.6,0.89168982]
[1718058788339,0.726587,3672.7,3672.6,0.89168982]
[1718058791571,0.003587,3672.7,3672.6,0.89168982]
[1718058791775,0.726587,3672.7,3672.6,0.89168982]
[1718058791950,0.726587,3672.7,3672.6,0.03390872]
[1718058794072,0.726587,3672.7,3672.6,1.17776139]
[1718058797940,0.726587,3672.7,3672.6,0.03390872]
[1718058798940,0.003587,3672.7,3672.6,2.45230872]
[1718058803947,0.003587,3672.7,3672.6,3.88031511]
[1718058804581,0.003587,3672.7,3672.6,2.45230872]
[1718058804773,0.003587,3672.7,3672.6,3.88017315]
[1718058806554,0.003587,3672.7,3672.6,2.45230872]
[1718058809593,0.003587,3672.7,3672.6,3.59451404]
[1718058815980,0.003587,3672.7,3672.6,2.45230872]
[1718058819210,0.003587,3672.7,3672.6,3.59451404]
[1718058819397,0.003587,3672.7,3672.6,3.64301404]
[1718058819608,0.726587,3672.7,3672.6,2.50080872]
[1718058823031,0.726587,3672.7,3672.6,3.92852678]
[1718058823032,0.003587,3672.7,3672.6,3.92852678]
[1718058823887,0.003587,3672.7,3672.6,4.76499862]
[1718058824127,0.003587,3672.7,3672.6,6.33728056]
[1718058824752,0.003587,3672.7,3672.6,8.05054223]
[1718058825298,0.003587,3672.7,3672.6,6.33728056]
[1718058840270,0.003587,3672.7,3672.6,3.87038056]
[1718058840546,0.003587,3672.7,3672.6,4.4608421]
[1718058840838,0.726587,3672.7,3672.6,3.03390872]
[1718058845214,0.726587,3672.7,3672.6,4.4608421]
[1718058845535,0.726587,3672.7,3672.6,3.03390872]
[1718058845850,0.726587,3672.7,3672.6,4.4608421]
[1718058846453,0.726587,3672.7,3672.6,3.03390872]
[1718058846769,0.726587,3672.7,3672.6,4.4608421]
[1718058847650,0.726587,3672.7,3672.6,3.03390872]
[1718058848222,0.726587,3672.7,3672.6,4.4608421]
[1718058848421,0.726587,3672.7,3672.6,3.03390872]
[1718058849145,0.726587,3672.7,3672.6,4.4608421]
[1718058849551,0.726587,3672.7,3672.6,3.03390872]
[1718058850149,0.726587,3672.7,3672.6,4.4608421]
[1718058850351,0.726587,3672.7,3672.6,3.03390872]
[1718058851153,0.726587,3672.7,3672.6,4.4608421]
[1718058851452,0.726587,3672.7,3672.6,3.03390872]
[1718058852156,0.726587,3672.7,3672.6,4.4608421]
[1718058852360,0.726587,3672.7,3672.6,3.03390872]
[1718058853151,0.726587,3672.7,3672.6,4.4608421]
[1718058856556,0.726587,3672.7,3672.6,4.46141242]
[1718058857130,0.003587,3672.7,3672.6,4.46141242]
[1718058867460,0.003587,3672.7,3672.6,4.46182666]
[1718058869547,0.726587,3672.7,3672.6,1.46182666]
[1718058869747,3.6676017,3672.7,3672.6,0.03390872]
[1718058869983,3.6676017,3672.7,3672.6,1.17633438]
[1718058870289,3.6676017,3672.7,3672.6,0.60518687]
[1718058870782,3.6676017,3672.7,3672.6,0.03390872]
[1718058870946,1.3139017,3672.7,3672.1,0.57127815]
[1718058871143,0.723,3672.2,3672.1,0.57127815]
[1718058871350,3.0431,3672.2,3672.0,0.57127815]
[1718058871653,0.723,3672.1,3672.0,0.57127815]
[1718058872291,5.04329,3672.2,3671.9,0.57127815]
[1718058872451,0.723,3672.1,3671.8,0.57127815]
[1718058872648,0.723,3671.9,3671.8,0.57127815]
[1718058873160,0.723,3671.9,3671.7,0.57127815]
[1718058874296,0.723,3671.9,3671.6,0.57127815]
[1718058874453,0.723,3671.7,3671.6,0.57127815]
[1718058875688,0.723,3671.7,3671.5,0.57127815]
[1718058877790,0.723,3671.7,3671.6,0.0322919]
[1718058878559,0.723,3671.7,3671.4,3.57127815]
[1718058878873,0.723,3671.7,3671.5,0.0322919]
[1718058887890,0.723,3671.7,3671.3,0.57127815]
[1718058888091,5.21522,3671.8,3671.6,0.03296206]
[1718058888268,5.21522,3671.8,3671.3,0.57127815]
[1718058888269,0.723,3671.7,3671.3,0.57127815]
[1718058888463,0.723,3671.5,3671.3,0.57127815]
[1718058889705,5.21522,3671.8,3671.3,0.57127815]
[1718058889706,2.72352,3671.8,3671.3,0.57127815]
[1718058889878,2.72352,3671.8,3671.3,3.59144024]
[1718058890089,3.44652,3671.8,3671.4,3.57127815]
[1718058891772,3.44652,3671.8,3671.4,3.0]
[1718058891971,3.44652,3671.8,3671.4,3.57127815]
[1718058892602,3.44652,3671.8,3671.5,0.03301036]
[1718058893211,5.21499,3672.1,3671.5,0.03301036]
[1718058893413,0.723,3671.8,3671.5,0.03301036]
[1718058893907,0.723,3671.8,3671.5,0.60428851]
[1718058895906,2.72329,3672.1,3671.5,0.60428851]
[1718058896111,0.723,3671.8,3671.5,0.60428851]
[1718058901240,0.723,3671.9,3671.5,0.60428851]
[1718058901740,0.723,3671.9,3671.6,0.57127815]
[1718058902128,0.723,3671.9,3671.7,0.03332436]
[1718058904547,0.723,3671.9,3671.7,0.60460251]
[1718058907548,2.72308,3672.4,3671.7,4.16087503]
[1718058907718,0.723,3672.2,3671.8,0.57127815]
[1718058908055,2.3119,3672.6,3672.1,3.29291704]
[1718058908056,0.723,3672.5,3672.1,3.29291704]
[1718058908452,0.723,3672.5,3672.3,0.57002772]
[1718058909154,0.723,3672.5,3672.4,0.03334852]
[1718058910040,2.72287,3672.6,3672.4,0.03334852]
[1718058910222,2.3119,3672.8,3672.4,0.03334852]
[1718058910223,0.723,3672.5,3672.4,0.03334852]
[1718058912158,0.723,3672.5,3672.4,0.60337624]
[1718058914142,0.723,3672.5,3672.4,0.03334852]
[1718058914547,0.723,3672.5,3672.4,0.60400714]
[1718058915263,0.723,3672.5,3672.4,0.03334852]
[1718058915669,2.72269,3672.9,3672.4,0.03334852]
[1718058915857,2.72269,3672.9,3672.5,0.57080417]
[1718058916055,0.723,3672.6,3672.5,0.57080417]
[1718058918257,0.723,3672.6,3672.3,0.85691704]
[1718058918258,0.723,3672.6,3672.4,0.57080417]
[1718058920964,0.723,3672.6,3672.3,0.57080417]
[1718058921143,0.723,3672.4,3672.3,0.57080417]
[1718058922536,1.2936557,3672.4,3672.1,0.57080417]
[1718058922735,0.5706557,3672.4,3672.3,0.03309205]
[1718058922960,2.72308,3672.3,3672.0,0.57080417]
[1718058923300,0.723,3672.2,3672.0,0.57080417]
[1718058929246,0.723,3672.2,3672.1,0.57080417]
[1718058929448,0.723,3672.2,3671.9,0.85691704]
[1718058929449,1.12467357,3672.2,3672.0,0.57080417]
[1718058929645,0.723,3672.1,3672.0,0.57080417]
[1718058933065,3.44623,3672.1,3672.0,0.57080417]
[1718058937887,3.44623,3672.1,3672.0,0.68819473]
[1718058953881,2.72323,3672.1,3672.0,0.68819473]
[1718058954089,3.44623,3672.1,3672.0,0.68819473]
[1718058954694,3.44623,3672.1,3672.0,0.11739056]
[1718058955095,3.44623,3672.1,3672.0,0.68844269]
[1718058959302,3.44623,3672.1,3672.0,0.11739056]
[1718058960791,3.44623,3672.1,3672.0,0.68865052]
[1718058961118,4.07833857,3672.1,3672.0,0.68865052]
[1718058962529,4.07833857,3672.1,3672.0,0.11739056]
[1718058965407,4.07833857,3672.1,3672.0,0.9743076]
[1718058968515,4.07833857,3672.1,3672.0,0.11739056]
[1718058969007,4.07833857,3672.1,3672.0,0.97523331]
[1718058969207,4.07833857,3672.1,3672.0,0.92523331]
[1718058969424,4.07833857,3672.1,3672.0,0.97350627]
[1718058969579,4.07833857,3672.1,3672.0,0.97351651]
[1718058969780,4.07833857,3672.1,3672.0,0.11566352]
[1718058969980,4.07833857,3672.1,3672.0,0.97351649]
[1718058970407,4.07833857,3672.1,3672.0,0.11566352]
[1718058972431,4.07833857,3672.1,3672.0,0.97356034]
[1718058975522,4.07833857,3672.1,3672.0,0.11566352]
[1718058975523,6.80156857,3672.1,3672.0,0.11566352]
[1718058975708,9.14916857,3672.1,3672.0,0.68761121]
[1718058976137,9.14916857,3672.1,3672.0,0.11566352]
[1718058977534,2.72338,3671.9,3671.8,0.57194769]
[1718058977723,9.53239186,3671.9,3671.8,0.57194769]
[1718058978042,9.53239186,3671.9,3671.7,0.57194769]
[1718058978195,2.72368,3671.5,3671.4,0.57194769]
[1718058978400,2.72368,3671.5,3671.0,23.37492566]
[1718058978401,2.72368,3671.5,3671.3,0.57194769]
[1718058978664,0.723,3671.4,3671.3,0.57194769]
[1718058979019,2.72383,3671.3,3671.2,0.57194769]
[1718058979230,3.44683,3671.3,3671.2,0.57194769]
[1718058981310,3.44683,3671.3,3671.1,0.57194769]
[1718058981532,1.067683,3671.2,3671.1,0.57194769]
[1718058981713,2.72397,3671.1,3671.0,0.57194769]
[1718058981906,3.44697,3671.1,3670.9,0.57194769]
[1718058982107,3.44697,3671.1,3670.6,0.57194769]
[1718058982108,2.72414,3670.9,3670.6,0.57194769]
[1718058982341,2.72427,3670.7,3670.5,2.90444769]
[1718058982544,0.723,3670.6,3670.5,2.3325]
[1718058983543,0.723,3670.6,3670.4,8.01194769]
[1718058983839,0.723,3670.6,3670.4,0.57194769]
[1718058984021,0.723,3670.6,3670.4,3.57194769]
[1718058984208,2.72427,3670.7,3670.4,3.0]
[1718058984538,0.723,3670.5,3670.4,3.57194769]
[1718058985302,0.723,3670.5,3670.4,3.0]
[1718058986610,0.723,3670.5,3670.3,5.3325]
[1718058987827,0.723,3670.5,3670.3,2.3325]
[1718058994148,2.72427,3670.7,3670.3,2.3325]
[1718058994314,0.723,3670.4,3670.3,2.3325]
[1718058997611,0.723,3670.4,3670.3,2.41471854]
[1718059003966,0.723,3670.4,3670.3,0.08221854]
[1718059004264,0.723,3670.4,3670.0,5.3156]
[1718059004505,0.723,3670.4,3670.3,0.08221854]
[1718059004754,0.723,3670.4,3670.0,7.00662345]
[1718059004951,0.723,3670.4,3670.3,0.08221854]
[1718059005172,2.72427,3670.7,3670.0,5.88754769]
[1718059005472,0.723,3670.4,3670.3,0.08221854]
[1718059005669,0.723,3670.4,3670.0,5.88754769]
[1718059005982,0.723,3670.4,3670.3,0.08221854]
[1718059006128,0.723,3670.4,3670.0,5.88754769]
[1718059006473,0.723,3670.4,3670.1,0.08221854]
[1718059012568,0.723,3670.4,3670.1,0.65416623]
[1718059015481,0.723,3670.4,3670.2,0.57194769]
[1718059015993,0.723,3670.4,3670.3,0.08220644]
[1718059016179,2.72427,3670.7,3670.3,0.08220644]
[1718059016394,0.723,3670.5,3670.3,0.08220644]
[1718059017491,0.723,3670.5,3670.3,0.65415413]
[1718059019498,0.723,3670.5,3670.4,0.57194769]
[1718059020211,0.723,3670.5,3670.4,0.65415413]
[1718059021413,0.723,3670.5,3670.4,0.08220644]
[1718059021778,0.723,3670.5,3670.3,0.85789682]
[1718059021974,0.723,3670.5,3670.4,0.08221854]
[1718059022375,0.723,3670.5,3670.4,0.85789682]
[1718059022574,0.723,3670.5,3670.4,0.94011536]
[1718059023524,0.723,3670.5,3670.4,0.08221854]
[1718059023874,0.723,3670.5,3670.3,1.14242566]
[1718059024074,0.723,3670.5,3670.4,0.08221854]
[1718059024512,0.723,3670.5,3670.3,1.14242566]
[1718059024707,0.723,3670.5,3670.4,0.08221854]
[1718059025091,0.723,3670.5,3670.3,1.14242566]
[1718059025293,0.723,3670.5,3670.4,0.08221854]
[1718059025493,0.723,3670.5,3670.4,1.2246442]
[1718059025706,0.723,3670.5,3670.4,1.14242566]
[1718059025919,0.723,3670.5,3670.4,1.2246442]
[1718059027516,0.723,3670.5,3670.4,0.08221854]
[1718059028023,0.723,3670.5,3670.4,0.08263551]
[1718059028223,0.723,3670.5,3670.3,1.42401882]
[1718059028520,0.723,3670.5,3670.4,0.08263551]
[1718059029315,0.723,3670.5,3670.3,1.42401882]
[1718059029481,0.723,3670.5,3670.4,0.08263551]
[1718059029910,0.723,3670.5,3670.3,1.42401882]
[1718059030113,0.723,3670.5,3670.4,0.08263551]
[1718059030492,0.723,3670.5,3670.3,1.42401882]
[1718059030723,0.723,3670.5,3670.4,0.08263551]
[1718059031406,0.723,3670.5,3670.3,1.42401882]
[1718059031603,0.723,3670.5,3670.4,0.08263551]
[1718059031978,0.723,3670.5,3670.3,1.42401882]
[1718059032185,0.723,3670.5,3670.4,0.08263551]
[1718059032598,0.723,3670.5,3670.3,1.42401882]
[1718059032815,0.723,3670.5,3670.4,0.08263551]
[1718059033227,0.723,3670.5,3670.3,1.42401882]
[1718059033413,0.723,3670.5,3670.4,0.08263551]
[1718059034224,0.723,3670.5,3670.3,1.42401882]
[1718059034387,0.723,3670.5,3670.4,0.08263551]
[1718059034790,0.723,3670.5,3670.3,1.42401882]
[1718059034986,0.723,3670.5,3670.4,0.08262341]
[1718059035401,0.723,3670.5,3670.3,1.42401882]
[1718059035728,0.723,3670.5,3670.4,0.08262341]
[1718059036521,0.723,3670.5,3670.3,1.42401882]
[1718059036713,0.723,3670.5,3670.4,0.08262341]
[1718059037022,0.723,3670.5,3670.3,1.42401882]
[1718059037219,0.723,3670.5,3670.4,0.08262341]
[1718059037721,0.723,3670.5,3670.3,1.42401882]
[1718059037907,0.723,3670.5,3670.4,0.08262341]
[1718059038224,0.723,3670.5,3670.3,1.42401882]
[1718059038424,0.723,3670.5,3670.4,0.08262341]
[1718059038791,0.723,3670.5,3670.3,1.42401882]
[1718059038994,0.723,3670.5,3670.4,0.08262341]
[1718059039446,0.723,3670.5,3670.3,1.42401882]
[1718059039721,2.72427,3670.7,3670.4,0.08262341]
[1718059039903,3.241467,3670.7,3670.5,1.14445523]
[1718059040103,0.723,3670.6,3670.5,1.14445523]
[1718059042596,0.723,3670.6,3670.5,1.22707864]
[1718059050274,3.241467,3670.7,3670.5,1.22707864]
[1718059050477,2.72427,3670.7,3670.6,1.14445523]
[1718059050677,3.44727,3670.7,3670.6,1.14445523]
[1718059051178,3.44727,3670.7,3670.6,1.22707864]
[1718059051466,3.44727,3670.7,3670.6,0.08262341]
[1718059051979,2.72427,3670.7,3670.6,0.08262341]
[1718059052177,2.72427,3670.7,3670.6,1.22707864]
[1718059052377,2.72427,3670.7,3670.6,0.08262341]
[1718059052680,3.44727,3670.7,3670.6,1.22707864]
[1718059053987,3.44727,3670.7,3670.6,0.08262341]
[1718059065627,2.72427,3670.7,3670.6,0.08262341]
[1718059065828,3.44727,3670.7,3670.6,0.08262341]
[1718059082340,3.791997,3670.7,3670.6,0.08262341]
[1718059085268,3.44727,3670.7,3670.6,0.08262341]
[1718059091569,3.44727,3670.7,3670.6,1.22707864]
[1718059092786,2.72427,3670.7,3670.6,1.22707864]
[1718059093111,3.44727,3670.7,3670.6,1.22707864]
[1718059093395,3.44727,3670.7,3670.6,0.08262341]
[1718059093549,3.44727,3670.7,3670.6,1.22707864]
[1718059095704,2.72427,3670.7,3670.6,1.22707864]
[1718059095880,0.723,3670.7,3670.6,1.22707864]
[1718059097307,0.723,3670.7,3670.6,0.08262341]
[1718059098369,0.723,3670.7,3670.6,1.22707864]
[1718059100781,2.7242,3670.8,3670.6,1.22707864]
[1718059100983,0.723,3670.7,3670.6,1.22707864]
[1718059101690,2.7242,3670.8,3670.6,1.22707864]
[1718059102001,0.723,3670.7,3670.6,1.22707864]
[1718059120309,1.06772,3670.7,3670.6,1.22707864]
[1718059121328,0.723,3670.7,3670.6,1.22707864]
[1718059126868,0.723,3670.7,3670.6,0.08262341]
[1718059136669,0.723,3670.7,3670.6,0.94093325]
[1718059137085,0.723,3670.7,3670.6,0.08262341]
[1718059137905,0.723,3670.7,3670.6,0.94092536]
[1718059139203,0.723,3670.7,3670.6,0.08262341]
[1718059140066,0.723,3670.7,3670.6,0.94090889]
[1718059140938,0.723,3670.7,3670.6,0.08262341]
[1718059145158,0.723,3670.7,3670.6,0.94089116]
[1718059146765,2.7242,3670.8,3670.6,0.94089116]
[1718059146949,0.723,3670.7,3670.6,0.08262341]
[1718059147351,2.7242,3670.8,3670.6,0.08262341]
[1718059147535,2.7242,3670.8,3670.7,0.8582315]
[1718059147730,3.4472,3670.8,3670.7,0.92998559]
[1718059177429,4.03431,3670.8,3670.7,0.92998559]
[1718059177593,4.03431,3670.8,3670.7,0.07175409]
[1718059180463,4.03431,3670.8,3670.7,0.64394004]
[1718059180973,4.03431,3670.8,3670.7,0.07175409]
[1718059182390,3.31131,3670.8,3670.7,0.07175409]
[1718059182596,2.7242,3670.8,3670.7,0.07175409]
[1718059182797,3.4472,3670.8,3670.7,0.07175409]
[1718059183105,3.4472,3670.8,3670.7,0.92998559]
[1718059184571,2.7242,3670.8,3670.7,0.92998559]
[1718059184814,3.4472,3670.8,3670.7,0.92998559]
[1718059189712,0.723,3670.8,3670.7,0.92998559]
[1718059190210,0.723,3670.8,3670.7,0.07175409]
[1718059192000,0.723,3670.8,3670.7,0.92991827]
[1718059209451,1.067719,3670.8,3670.7,0.92991827]
[1718059211664,3.321619,3670.8,3670.7,0.92991827]
[1718059211797,3.321619,3670.8,3670.7,0.64386537]
[1718059211996,3.321619,3670.8,3670.7,0.07175409]
[1718059212227,2.2539,3670.7,3670.2,0.57211128]
[1718059212416,1.067719,3670.8,3670.0,0.57211128]
[1718059212417,2.9769,3670.3,3670.0,0.57211128]
[1718059212622,0.723,3670.1,3670.0,0.57211128]
[1718059213347,0.723,3670.1,3669.9,0.57211128]
[1718059213348,2.72479,3670.0,3669.9,0.57211128]
[1718059213522,3.44779,3670.0,3669.9,0.57211128]
[1718059214220,3.44779,3670.0,3669.8,8.01211128]
[1718059215827,3.567416,3670.0,3669.8,8.01211128]
[1718059216036,0.723,3669.9,3669.8,7.44]
[1718059216739,3.567416,3670.0,3669.8,7.44]
[1718059216942,0.723,3669.9,3669.8,7.44]
[1718059217833,0.723,3669.9,3669.6,0.57211128]
[1718059218035,0.723,3669.7,3669.6,0.57211128]
[1718059222116,0.723,3669.7,3669.5,0.57211128]
[1718059222350,0.723,3669.6,3669.5,0.57211128]
[1718059222551,2.72516,3669.5,3669.3,0.57211128]
[1718059222757,2.72531,3669.3,3669.2,0.57211128]
[1718059222978,4.034201,3669.3,3669.1,0.57211128]
[1718059223115,0.723,3669.2,3668.9,0.57211128]
[1718059223315,0.723,3669.0,3668.8,0.57211128]
[1718059223551,0.723,3668.9,3668.8,0.57211128]
[1718059224474,2.72547,3669.1,3668.7,0.57211128]
[1718059224762,0.723,3668.9,3668.7,0.57211128]
[1718059225426,3.44863,3668.9,3668.5,2.86111128]
[1718059225739,0.723,3668.7,3668.5,2.86111128]
[1718059226058,0.723,3668.7,3668.5,2.289]
[1718059226351,0.723,3668.7,3668.4,0.57211128]
[1718059226551,0.723,3668.5,3668.3,0.57211128]
[1718059226717,0.723,3668.5,3668.2,3.0]
[1718059226718,0.723,3668.4,3668.2,0.57211128]
[1718059226913,0.723,3668.4,3668.1,2.289]
[1718059227185,0.723,3668.2,3668.0,0.57211128]
[1718059227385,2.72593,3668.5,3667.8,2.86111128]
[1718059227522,0.723,3668.1,3667.8,2.289]
[1718059228355,0.723,3668.1,3667.8,5.289]
[1718059228728,0.723,3668.1,3667.8,2.289]
[1718059229635,2.72608,3668.3,3667.8,2.289]
[1718059229852,0.723,3668.2,3667.8,3.14776513]
[1718059230150,2.72587,3668.6,3667.9,3.0]
[1718059230335,0.723,3668.7,3668.1,2.379]
[1718059231536,0.723,3668.5,3668.1,2.379]
[1718059231830,0.723,3668.5,3668.2,0.86773813]
[1718059234451,2.72543,3669.2,3668.3,2.3098]
[1718059234662,0.723,3668.9,3668.3,2.3098]
[1718059234971,0.723,3668.9,3668.4,2.72595]
[1718059237666,0.723,3668.7,3668.5,0.10151538]
[1718059237829,0.723,3668.7,3668.4,2.72595]
[1718059238029,0.723,3668.7,3668.6,0.10151538]
[1718059238265,0.723,3668.7,3668.4,3.07563228]
[1718059238562,0.723,3668.8,3668.4,3.07563228]
[1718059238932,0.723,3668.8,3668.5,0.10151538]
[1718059239130,0.723,3668.8,3668.4,3.07563228]
[1718059239324,0.723,3668.8,3668.5,0.10151538]
[1718059239529,0.723,3668.8,3668.4,3.07563228]
[1718059239830,0.723,3668.8,3668.5,0.10151538]
[1718059240062,0.723,3668.8,3668.4,3.07563228]
[1718059240362,0.723,3668.8,3668.6,0.10151538]
[1718059240541,0.723,3668.8,3668.4,2.72595]
[1718059241130,0.723,3668.8,3668.5,0.10151538]
[1718059241338,0.723,3668.8,3668.4,2.72595]
[1718059241741,0.723,3668.8,3668.5,0.10151538]
[1718059242039,0.723,3668.6,3668.4,2.72595]
[1718059243881,0.723,3668.5,3668.4,2.72595]
[1718059245458,2.7257,3668.8,3668.1,2.72619]
[1718059245641,0.723,3668.5,3668.1,2.72619]
[1718059246543,5.0404,3668.8,3668.1,2.72619]
[1718059246876,0.723,3668.5,3668.1,2.72619]
[1718059251392,2.7257,3668.8,3668.1,2.72619]
[1718059251619,0.723,3668.7,3668.2,2.4842]
[1718059252653,0.723,3668.7,3668.3,0.1023319]
[1718059252853,0.723,3668.7,3668.2,2.4842]
[1718059253078,0.723,3668.7,3668.4,0.1023319]
[1718059253353,0.723,3668.7,3668.5,0.1023319]
[1718059253554,0.723,3668.7,3668.2,2.4842]
[1718059253750,0.723,3668.7,3668.3,0.1023319]
[1718059253955,0.723,3668.7,3668.2,2.4842]
[1718059254156,0.723,3668.7,3668.3,0.1023319]
[1718059254381,0.723,3668.7,3668.2,2.4842]
[1718059254579,0.723,3668.7,3668.4,0.1023319]
[1718059254856,0.723,3668.7,3668.2,2.4842]
[1718059255052,0.723,3668.7,3668.5,0.1023319]
[1718059255387,0.723,3668.7,3668.6,0.1023319]
[1718059255591,0.723,3668.7,3668.2,5.21025]
[1718059255754,0.723,3668.7,3668.6,0.1023319]
[1718059255954,0.723,3668.7,3668.2,5.21025]
[1718059256217,0.723,3668.7,3668.3,0.1023319]
[1718059256370,0.723,3668.5,3668.2,5.78236128]
[1718059256570,0.723,3668.5,3668.3,0.10239847]
[1718059256769,0.723,3668.5,3668.2,5.78236128]
[1718059256974,0.723,3668.5,3668.3,0.10239847]
[1718059257168,0.723,3668.5,3668.3,0.57211128]
[1718059257458,0.723,3668.5,3668.4,0.10239847]
[1718059260400,0.723,3668.5,3668.4,0.67450975]
[1718059261094,0.723,3668.5,3668.4,0.10239847]
[1718059261309,0.723,3668.5,3668.4,0.67450975]